Cogmind - Beta 13 @@@ ROGUE MODE // 2024.04.10 @ 11:53:34 Player: Broonsbane Result: Destroyed by Y-45 Defender with Heavy Assault Rifle Performance ------------- Evolutions (2) 1000 Regions Visited (6) 1200 Robots Destroyed (61) 305 Value Destroyed (1683) 1683 Prototype IDs (3) 60 Alien Tech Used (0) 0 Bonus (120) 120 TOTAL SCORE: 4368 Bonus ------- High Alert Combat Kills 68 Follower Combat Kills 52 Cogmind --------- Core Integrity 0/550 Matter 218/300 Energy 265/265 System Corruption 9% Temperature Cool (9) Movement Treading (160) Location -8/Storage Parts ------- > --- POWER (2) -------- Improved Ion Engine > --- PROPULSION (3) --- Light Treads Light Treads Airjet > --- UTILITY (3) ------ Visual Processing Unit Improved Signal Interpreter > --- WEAPON (3) ------- Heavy Assault Rifle Heavy Assault Rifle > --- INVENTORY (5) ---- (None) Peak State ------------ > --- POWER ------------ Improved Ion Engine Light Nuclear Core > --- PROPULSION ------- Gravmag System Gravmag System Gravmag System > --- UTILITY ---------- Improved Heat Sink Improved Melee Analysis Suite Improved Melee Analysis Suite > --- WEAPON ----------- Heavy Laser Assault Cannon Katana > --- INVENTORY -------- Airjet Airjet Airjet Power Shielding Mining Laser [Rating: 39] Favorites ----------- Power Ion Engine Engine Ion Engine Power Core Light Nuclear Core Propulsion Wheel Treads Light Treads Leg Aluminum Leg Wheel Wheel Hover Unit Gravmag System Flight Unit VTOL Module Utility Large Storage Unit Device Improved Heat Sink Storage Large Storage Unit Processor Signal Interpreter Protection Power Shielding Weapon Heavy Assault Rifle Energy Gun Heavy Laser Ballistic Gun Heavy Assault Rifle Ballistic Cannon Assault Cannon Launcher Rocket Launcher Special Weapon Mining Laser Impact Weapon Hammer Slashing Weapon Katana Build | -11 -10 -10 -10 -9 -8 -8 ------- Run | Yrd Mat Min Exi Min Mat Sto Slots Evolved 4 | . . . . . 4 . Power 1 | . . . . . 1 . Propulsion 1 | . . . . . 1 . Utility 1 | . . . . . 1 . Weapon 1 | . . . . . 1 . Parts Attached 95 | 6 18 10 . 2 40 19 Power 11 | 1 2 . . 1 5 2 Engine 7 | 1 2 . . . 2 2 Core 4 | . . . . 1 3 . Reactor . | . . . . . . . Propulsion 32 | 2 4 8 . . 12 6 Treads 10 | 2 4 . . . 2 2 Leg 4 | . . 4 . . . . Wheel 5 | . . 4 . . 1 . Hover 9 | . . . . . 5 4 Flight 4 | . . . . . 4 . Utility 20 | 1 6 . . . 8 5 Device 6 | . 1 . . . 4 1 Storage 3 | 1 2 . . . . . Processor 7 | . 2 . . . 3 2 Hackware . | . . . . . . . Protection 4 | . 1 . . . 1 2 Artifact . | . . . . . . . Weapon 32 | 2 6 2 . 1 15 6 Energy Gun 4 | 1 1 . . . 2 . Energy Cannon . | . . . . . . . Ballistic Gun 13 | 1 4 1 . 1 2 4 Ballistic Cannon 4 | . . . . . 3 1 Launcher 2 | . . . . . 2 . Special Weapon 1 | . . . . . 1 . Impact Weapon 3 | . 1 1 . . 1 . Slashing Weapon 5 | . . . . . 4 1 Piercing Weapon . | . . . . . . . Special Melee Weapon . | . . . . . . . Unidentified Prototypes 1 | . . . . . 1 . Parts Lost 30 | . . 1 . . 14 15 Power 5 | . . . . . 3 2 Propulsion 10 | . . 1 . . 5 4 Utility 6 | . . . . . 2 4 Weapon 9 | . . . . . 4 5 Highest Loss Streak 11 | . . 1 . . 11 5 To Critical Strikes . | . . . . . . . Average Slot Usage (%) 94 | . 94 99 100 100 90 90 Engine 11 | . 13 14 14 2 4 14 Core 3 | . . . . 11 11 . Treads 9 | . 27 19 . . . 1 Wheel 10 | . . 6 28 28 15 . Hover 6 | . . . . . 6 24 Device 3 | . 3 . . . 7 3 Storage 9 | . 14 14 14 14 6 . Processor 10 | . 1 14 14 14 10 11 Protection 2 | . 4 . . . . 10 Energy Gun 2 | . 4 . . . 2 4 Ballistic Gun 18 | . 20 26 28 28 11 9 Ballistic Cannon 1 | . . . . . 4 2 Slashing Weapon 2 | . . . . . 5 8 Naked Turns . | . . . . . . . Heaviest Build 41 | 12 32 31 31 31 41 24 Greatest Support 49 | 40 40 40 20 20 49 40 Greatest Overweight (x) 10 | . 8 10 1 1 1 1 Average Overweight (x) . | . . . 1 1 . . Largest Inventory Capacity 15 | 8 15 15 15 15 15 5 Average Capacity 11 | 6 12 15 15 15 11 5 Most Carried 15 | 6 10 13 13 15 15 5 Average Carried 9 | 3 8 11 13 14 11 4 Final Capacity 15 | 8 15 15 15 15 5 5 Final Carried 15 | 6 10 13 13 15 5 . Class Distribution -------------------- 60% | Mutant 34% | Scavenger-Mutant Dominant Class ---------------- Mutant | -10/Materials Mutant | -10/Mines Scavenger-Mutant | -10/Exiles Scavenger-Mutant | -9/Mines Scavenger-Mutant | -8/Materials Mutant | -8/Storage Resources | -11 -10 -10 -10 -9 -8 -8 ----------- Run | Yrd Mat Min Exi Min Mat Sto Matter Collected 1499 | 255 194 265 . 68 555 162 Remotely . | . . . . . . . Salvage Created 2121 | . 502 172 . 193 676 578 Parts 133 | . 37 8 . 5 44 39 Haulers Intercepted 1 | . . . . . . 1 Recyclers Shooed 1 | . . . . 1 . . Parts Field Recycled . | . . . . . . . Retrieved Matter . | . . . . . . . Parts Self-Destructed . | . . . . . . . Prevented . | . . . . . . . Kills | -11 -10 -10 -10 -9 -8 -8 ------- Run | Yrd Mat Min Exi Min Mat Sto Combat Hostiles Destroyed 46 | . 9 5 . 2 19 11 Melee 18 | . 3 . . . 5 10 Guns 23 | . 5 5 . 2 10 1 Cannons 1 | . . . . . 1 . AOE 3 | . . . . . 3 . Classes Destroyed 12 | . 5 1 . 1 2 3 Worker 4 | . . . . 1 3 . Hauler 1 | . . . . . . 1 Recycler 5 | . 2 . . 1 . 2 Operator 2 | . 1 . . . 1 . Drone 1 | . . . . . . 1 Watcher 5 | . 3 . . . 2 . Swarmer 13 | . 3 . . . 7 3 Grunt 20 | . 6 4 . 2 7 1 Brawler 2 | . . . . . 2 . Sentry 8 | . . . . . 3 5 Hunter 1 | . . . . . . 1 Assembled 1 | . . 1 . . . . Best Kill Streak 8 | . 4 4 . 2 8 2 Combat Bots Only 6 | . 2 4 . 2 6 2 Max Kills in Single Turn 3 | . 1 1 . 1 3 1 Gunslinging . | . . . . . . . Exploded 2 | . . . . . 2 . Melee 1 | . 1 . . . 1 1 Uniques/NPCs Destroyed . | . . . . . . . Combat | -11 -10 -10 -10 -9 -8 -8 -------- Run | Yrd Mat Min Exi Min Mat Sto Hostile Shots Fired 417 | . 69 33 . 5 163 147 Missed 129 | . 19 7 . 1 50 52 Damage Taken 3800 | . 514 355 . 44 1484 1403 Core 775 | . 120 79 . 11 328 237 Absorbed by Shields . | . . . . . . . Redirected to Shielding 46 | . 6 . . . . 40 Regen/Repaired (Parts) 207 | . . . . . 65 142 Core Remaining (%) 58 | 100 . . . 16 . . Volleys Fired 99 | . 31 13 . 8 34 13 Largest 3 | . 2 2 . 2 3 2 Hottest 160 | . 70 46 . 46 160 104 Shots Fired 180 | . 61 19 . 16 68 16 Gun 162 | . 61 19 . 16 54 12 Cannon 13 | . . . . . 9 4 Launcher 4 | . . . . . 4 . Special 1 | . . . . . 1 . Kinetic 153 | . 44 19 . 16 62 12 Thermal 22 | . 17 . . . 1 4 Explosive 4 | . . . . . 4 . Electromagnetic 1 | . . . . . 1 . Robot Hit Streak 10 | . 6 7 . 10 10 9 Robot Miss Streak 4 | . 4 1 . 1 4 1 Penetration Max . | . . . . . . . Secondary Targets 3 | . . . . . 3 . Max Gunslinging Chain 1 | . . . . . 1 . Shots Hit Robots 186 | . 44 15 . 13 59 55 Core Hits 93 | . 18 7 . 5 47 16 Critical Kills 1 | . 1 . . . . . Critical Parts Destroyed 3 | . 2 . . . 1 . Critical Strikes 13 | . 3 . . . 3 7 Destroy 1 | . . . . . 1 . Smash 3 | . 3 . . . . . Sever 9 | . . . . . 2 7 Melee Attacks 132 | . 20 10 . . 39 63 Impact 37 | . 20 10 . . 7 . Slashing 95 | . . . . . 32 63 Piercing . | . . . . . . . Sneak Attacks 9 | . . . . . 2 7 Combat Hostiles 3 | . . . . . . 3 Follow-up Attacks . | . . . . . . . Damage Inflicted 5046 | . 792 258 . 201 1918 1877 Guns 1536 | . 523 210 . 201 446 156 Cannons 197 | . . . . . 165 32 Explosions 581 | . . . . . 581 . Melee 2725 | . 267 43 . . 726 1689 Ramming 7 | . 2 5 . . . . Kinetic 1542 | . 387 210 . 201 611 133 Thermal 191 | . 136 . . . . 55 Explosive 581 | . . . . . 581 . Electromagnetic . | . . . . . . . Impact 310 | . 267 43 . . . . Slashing 2415 | . . . . . 726 1689 Piercing . | . . . . . . . Highest Corruption 9 | . . . . . 9 9 Average Corruption 8 | . . . . . 8 9 Corruption Purged . | . . . . . . . Corruption Blocked . | . . . . . . . Effects 41 | . . . . . 9 32 Message Errors 7 | . . . . . 2 5 Matter Fused 10 | . . . . . 2 8 Heat Flow Errors 4 | . . . . . . 4 Energy Discharges 4 | . . . . . 2 2 Parts Rejected 1 | . . . . . . 1 Parts Fused 1 | . . . . . . 1 Data Loss (minor) 7 | . . . . . 1 6 Data Loss (major) 5 | . . . . . . 5 Misfires 2 | . . . . . 2 . Overload Shots . | . . . . . . . Overflow Damage 269 | . 75 . . . 17 177 Projectiles . | . . . . . . . Explosions . | . . . . . . . Melee 269 | . 75 . . . 17 177 Knockbacks 1 | . 1 . . . . . Impact 1 | . 1 . . . . . Kinetic . | . . . . . . . Secondary . | . . . . . . . Self-Inflicted Damage 33 | . . . . . 33 . Shots 2 | . . . . . 2 . Rammed 3 | . 2 1 . . . . Targets Rammed 3 | . 2 1 . . . . Kicked . | . . . . . . . Crushed . | . . . . . . . Highest Temperature 251 | . 141 . . 3 75 251 Average Temperature 53 | . 41 . . 3 27 89 Received Heat Transfer 1206 | . 234 84 . 24 486 378 Effects 5 | . . . . . . 5 Interference 5 | . . . . . . 5 Siege Activations . | . . . . . . . Robots Corrupted . | . . . . . . . Combat Hostiles . | . . . . . . . Parts Fried . | . . . . . . . Impact Corruptions 3 | . 3 . . . . . Robots Melted . | . . . . . . . Combat Hostiles . | . . . . . . . Parts Melted 2 | . 1 . . 1 . . Heat Transferred 518 | . 407 . . . . 111 Parts Sabotaged . | . . . . . . . Parts Stolen . | . . . . . . . Parts Stripped . | . . . . . . . Power Chain Reactions . | . . . . . . . Alert | -11 -10 -10 -10 -9 -8 -8 ------- Run | Yrd Mat Min Exi Min Mat Sto Peak Influence 606 | . 202 80 . 116 462 606 Initial 195 | . . 46 . . 44 195 Average 176 | . 77 40 . 81 211 430 Maximum Alert Level 2 | . 1 . . . 2 2 Low Security (%) 61 | 100 81 100 . 100 43 2 Level 1 22 | . 18 . . . 44 33 Level 2 16 | . . . . . 11 63 Level 3 . | . . . . . . . Level 4 . | . . . . . . . Level 5 . | . . . . . . . High Security . | . . . . . . . Max Security . | . . . . . . . Squads Dispatched 5 | . 2 . . . 3 . Investigation . | . . . . . . . Extermination . | . . . . . . . Reinforcement 4 | . 2 . . . 2 . Assault 1 | . . . . . 1 . Garrison . | . . . . . . . Intercept . | . . . . . . . Searches Triggered 1 | . . . . . . 1 Construction Impeded . | . . . . . . . Haulers Reinforced . | . . . . . . . Active Scanning Responses . | . . . . . . . Cargo Convoy Interrupts . | . . . . . . . Stealth | -11 -10 -10 -10 -9 -8 -8 --------- Run | Yrd Mat Min Exi Min Mat Sto Distress Signals 7 | . 3 . . . 2 2 Communications Jammed . | . . . . . . . Distress Signals . | . . . . . . . Times Spotted 100 | . 22 6 . 4 41 27 Peak Tracking Total 11 | . 5 3 . 2 11 8 Tactical Retreats 11 | . . 1 . . 3 7 Traps | -11 -10 -10 -10 -9 -8 -8 ------- Run | Yrd Mat Min Exi Min Mat Sto Traps Triggered 3 | . 2 . . . . 1 Indirectly . | . . . . . . . Trap Hack Attempts . | . . . . . . . Triggered . | . . . . . . . Disarmed . | . . . . . . . Reprogrammed . | . . . . . . . Reused . | . . . . . . . Traps Extracted . | . . . . . . . Installed . | . . . . . . . Triggered . | . . . . . . . Machines | -11 -10 -10 -10 -9 -8 -8 ---------- Run | Yrd Mat Min Exi Min Mat Sto Machines Disabled 2 | . 1 . . . 1 . Max in Single Turn 1 | . 1 . . . 1 . Garrison Access 1 | . . . . . 1 . Machines Repaired . | . . . . . . . Machines Dismantled . | . . . . . . . Machines Sabotaged . | . . . . . . . Overloaded Fab Kills . | . . . . . . . Hacking | -11 -10 -10 -10 -9 -8 -8 --------- Run | Yrd Mat Min Exi Min Mat Sto Machines Accessed 16 | . 1 . 4 . 4 7 Terminals 8 | . 1 . . . 3 4 Fabricators . | . . . . . . . Repair Stations 3 | . . . . . 1 2 Recycling Units 1 | . . . . . . 1 Scanalyzers . | . . . . . . . Garrison Access . | . . . . . . . Total Hacks 32 | . 3 . 4 . 10 15 Successful 22 | . 2 . 4 . 6 10 Failed 10 | . 1 . . . 4 5 Catastrophic 1 | . . . . . . 1 Database Lockouts . | . . . . . . . Manual . | . . . . . . . Terminals 17 | . 3 . . . 6 8 Fabricators . | . . . . . . . Repair Stations 10 | . . . . . 4 6 Recycling Units 1 | . . . . . . 1 Scanalyzers . | . . . . . . . Garrison Access . | . . . . . . . Terminal Hacks 11 | . 2 . 4 . 2 3 Record 4 | . . . 4 . . . Prototype ID Bank 1 | . 1 . . . . . Open Door 1 | . . . . . . 1 Branch Access Points 1 | . . . . . 1 . Emergency Access Points 1 | . . . . . 1 . Locate Traps 1 | . . . . . . 1 Hauler Manifests 2 | . 1 . . . . 1 Fabricator Hacks . | . . . . . . . Repair Station Hacks 10 | . . . . . 4 6 Scan Component 5 | . . . . . 2 3 Repair 5 | . . . . . 2 3 Recycling Unit Hacks 1 | . . . . . . 1 Report Inventory 1 | . . . . . . 1 Scanalyzer . | . . . . . . . Garrison Access Hacks . | . . . . . . . Unauthorized Hacks . | . . . . . . . Terminals . | . . . . . . . Fabricators . | . . . . . . . Repair Stations . | . . . . . . . Recycling Units . | . . . . . . . Scanalyzers . | . . . . . . . Garrison Access . | . . . . . . . Data Cores Recovered . | . . . . . . . Used . | . . . . . . . Hacking Detections 8 | . 1 . . . 3 4 Full Trace Events 1 | . . . . . 1 . Feedback Events . | . . . . . . . Feedback Blocked . | . . . . . . . Robot Schematics Acquired . | . . . . . . . Robots Built . | . . . . . . . Authchips . | . . . . . . . Time . | . . . . . . . Total Robot Build Rating . | . . . . . . . Part Schematics Acquired . | . . . . . . . Parts Built . | . . . . . . . Authchips . | . . . . . . . Time . | . . . . . . . Total Part Build Rating . | . . . . . . . Parts Repaired 5 | . . . . . 2 3 Time 202 | . . . . . 82 120 Parts Recycled . | . . . . . . . Recycled Matter . | . . . . . . . Retrieved Matter . | . . . . . . . Retrieved Components . | . . . . . . . Parts Scanalyzed . | . . . . . . . Part Schematics Acquired . | . . . . . . . Parts Damaged . | . . . . . . . Bothacking | -11 -10 -10 -10 -9 -8 -8 ------------ Run | Yrd Mat Min Exi Min Mat Sto Used RIF Installer . | . . . . . . . Robots Hacked . | . . . . . . . Non-combat . | . . . . . . . Combat . | . . . . . . . Robot Hacks Applied . | . . . . . . . Relay Couplers Released 3 | . . . . . 3 . Machine Destruction 3 | . . . . . 3 . Fabnet Peak Effective % . | . . . . . . . Robots Rewired . | . . . . . . . Allies Hacked . | . . . . . . . Hacks Repelled . | . . . . . . . Allies | -11 -10 -10 -10 -9 -8 -8 -------- Run | Yrd Mat Min Exi Min Mat Sto Total Allies 1 | . . . . 1 . . Largest Group 1 | . . . . 1 . . Highest-Rated Group 31 | . . . . 31 . . Highest-Rated Ally 31 | . . . . 31 . . Total Orders . | . . . . . . . Ally Attacks 9 | . . . . 9 . . Total Damage 130 | . . . . 130 . . Kills 2 | . . . . 2 . . Allies Corrupted . | . . . . . . . Allies Melted . | . . . . . . . Intel | -11 -10 -10 -10 -9 -8 -8 ------- Run | Yrd Mat Min Exi Min Mat Sto Robot Analysis Total . | . . . . . . . Derelict Logs Recovered 2 | . . 1 . 1 . . Drone Launches . | . . . . . . . Drone Recoveries . | . . . . . . . Exploration | -11 -10 -10 -10 -9 -8 -8 ------------- Run | Yrd Mat Min Exi Min Mat Sto Turns Passed 4260 | 119 676 953 520 234 952 806 Spaces Moved 3319 | 58 290 568 548 215 863 777 Core 6 | 2 3 1 . . . . Treads 712 | 56 287 330 . . 9 30 Legs 31 | . . 31 . . . . Wheels 1405 | . . 206 548 215 436 . Hover 954 | . . . . . 207 747 Flight 211 | . . . . . 211 . Fastest Speed 30 | 50 160 95 95 95 30 52 Average Speed 93 | 156 163 142 95 95 66 56 Slowest Speed 550 | 160 450 550 95 95 240 160 Overloaded Moves . | . . . . . . . Propulsion Burnouts . | . . . . . . . Robots Hopped 3 | . . . . . 3 . Cave-ins Triggered . | . . . . . . . Exploration Rate (%) 59 | 5 45 87 89 55 49 88 Regions Visited 6 Branch Regions 4 Pre-discovered Areas 1 | . . . . 1 . . Known Exits Taken 5 | . 1 1 1 1 1 . Unknown Exits Taken 1 | 1 . . . . . . Scrap Searched 3 | . . 1 . 2 . . Spaces Dug 19 | . . . . . 5 14 Terrain Destroyed 53 | . . . . . 39 14 Melee 19 | . . . . . 5 14 Projectile 1 | . . . . . 1 . AOE 33 | . . . . . 33 . Terrain Rammed . | . . . . . . . Walls Destroyed . | . . . . . . . Machines Disabled . | . . . . . . . Actions | -11 -10 -10 -10 -9 -8 -8 --------- Run | Yrd Mat Min Exi Min Mat Sto Total 4063 | 83 392 673 547 228 1109 1031 Wait 350 | 14 15 65 . . 105 151 Move 3308 | 57 289 567 547 214 857 777 Hop 2 | . . . . . 2 . Pick Up 35 | 6 7 1 . 2 13 6 Fast Attach 51 | 6 11 6 . 1 20 7 Attach 21 | . . 1 . . 9 11 Detach 5 | . 1 3 . . 1 . Swap 23 | . 7 3 . 1 11 1 Drop 34 | . 9 3 . 2 18 2 Fire 99 | . 31 13 . 8 34 13 Melee 132 | . 20 10 . . 39 63 Ram . | . . . . . . . Kick . | . . . . . . . Crush 3 | . 2 1 . . . . Escape Stasis . | . . . . . . . Rewire . | . . . . . . . Trap . | . . . . . . . Miscellaneous . | . . . . . . . Route ------- -11/Scrapyard -10/Materials (discovered 2 exits: *Mat / *Min) -10/Mines (discovered 3 exits: *Mat x2 / *Exi) -10/Exiles -9/Mines -8/Materials (discovered 4 exits: *Fac x2 / *Sto x2) -8/Storage History --------- Turn | Location | Event 6 | -11/Scrapyard | Discovered new exit (range 15) 120 | -11/Scrapyard | Entered Materials 312 | -10/Materials | Build established: Mutant 443 | -10/Materials | Discovered new exit (range 16) 643 | -10/Materials | Discovered new exit (range 9) 794 | -10/Materials | Identified exit to Mines 796 | -10/Materials | Entered Mines 807 | -10/Mines | Met a Derelict bent on vengeance 822 | -10/Mines | Discovered new exit (range 13) 891 | -10/Mines | Identified exit to Materials 1029 | -10/Mines | Received a Rocket Launcher from a helpful Derelict 1131 | -10/Mines | Discovered exit to Materials (range 12) 1232 | -10/Mines | Excavation squad dispatched 1232 | -10/Mines | A large section of the Mines collapsed 1253 | -10/Mines | Learned Materials terminal intel 1289 | -10/Mines | Core integrity fell below 50% 1745 | -10/Mines | Deemed a non-threat by the Exiles lab entrance 1745 | -10/Mines | Discovered new exit (range 5) 1748 | -10/Mines | Identified exit to Exiles 1749 | -10/Mines | Entered Exiles 1749 | -10/Exiles | Found Exiles lab abandoned 1812 | -10/Exiles | Build established: Scavenger-Mutant 2251 | -10/Exiles | Discovered new exit (range 14) 2268 | -10/Exiles | Identified exit to Mines 2269 | -10/Exiles | Entered Mines 2275 | -9/Mines | Received a Mining Laser from a helpful Derelict 2300 | -9/Mines | Core integrity fell below 20% 2320 | -9/Mines | Learned location of Zion (-7) 2494 | -9/Mines | Discovered new exit (range 11) 2502 | -9/Mines | Identified exit to Materials 2503 | -9/Mines | Entered Materials 2503 | -8/Materials | Evolved 4 slots: Power x1, Propulsion x1, Utility x1, Weapon x1 2504 | -8/Materials | Loaded intel: 12 terminal locations 2681 | -8/Materials | Discovered new exit (range 13) 2691 | -8/Materials | Identified exit to Factory 2938 | -8/Materials | Repaired Adv. Weight Redist. System 2966 | -8/Materials | Discovered exit to Factory (range 12) 3051 | -8/Materials | Identified exit to Storage 3136 | -8/Materials | Core integrity fell below 50% 3164 | -8/Materials | Lost 11 parts (2p4n2u3w) 3336 | -8/Materials | Repaired Gravmag System 3455 | -8/Materials | Entered Storage 3510 | -8/Storage | Build established: Mutant 3535 | -8/Storage | Repaired Gravmag System 3760 | -8/Storage | Core integrity fell below 20% 3843 | -8/Storage | Repaired Imp. Ion Engine 3905 | -8/Storage | Lost 3 parts (1n1u1w) 4189 | -8/Storage | Repaired Gravmag System 4239 | -8/Storage | Lost 5 parts (1p1n2u1w) 4255 | -8/Storage | Search patrols dispatched 4261 | -8/Storage | Destroyed by Y-45 Defender with Heavy Assault Rifle Last Messages --------------- Rating: 4 Time: 44 >>Repair Repairing Gravmag System... ETC: 44 System corrupted: Component data lost. Katana destroyed. Lgt. Ion Engine destroyed. Lgt. Armor Plating destroyed. Airjet destroyed. System corrupted: Matter fused (-7). Repair station completes Gravmag System repairs. Dropped Power Shielding. I/OEYHGU0S5KNPW=S6V, #VQ Imp. Melee Analysis Suite destroyed. FF686 HAWMAG3&B>:JG System corrupted: Matter fused (-6). Y-45 Defender destroyed. ALERT: Heightened foreign activity detected, dispatching search patrol. Map ----- +----------------------------------------------------+ | | | | | | | | | | | | | | | | | | | ????????????????????????????????????????? | | ????????????????????????????????????????? | | ???????????????????########?????????????? | | ???????????????????# #?????????????? | | ??????????????????## #???##??####?## | | ??????????????????# """ #???# # | | ???????????????????# """ #??## """ """ # | | ???????????????????# """ #??# """ """ # | | ???????????????????# #???# """ """ # | | ????????????###########+###???# # | | ????????????# + #?????# ] # | | ????????????# # #?????? # | | ????????????# # #?????? ?? | | ????????????# + #??????#+###+##?? | | ????????????####+###### #??????# #?? | | ############???# #?#### ######## #?? | | #???# #?# !k@Y[Y=aa #?? | | % ##### #?# ########### #?? | | + #?# #?????????# #?? | | ! % ##### #?# #?????????# #?? | | ! * #??## ### #?????????# #?? | | =! #??# ## #?????????# #?? | | ############??# T #?????????# #?? | | #?????????????# ####??########/## #?? | | ####??????????## ##?????# # #?? | | """#???????????# #??????# """" / #?? | | G"#???????????# #??????# ""??" # #?? | | """#???????????# #??????# ""???" # #?? | | ####???????????# #??????# "???"" + #?? | | #??????????????# #??????# "??"" # #?? | | #??????????????# #??????# """" # #?? | | #??????????????# #??????# # #?? | | #??????????????# ############/##### #?? | | ##?????????????# #^ ^ #?# #???# #?? | | "#?????????????# # """ ### #???# #?? | | "############### #^ "R" / ! #???# #?? | | # "=" #####???# #?? | | %+ #???????# #?? | | # """ % #???????# #?? | | ##### ######+##### """^ %#???????? #?? | | ##??# #?# !# "" #???????? #?? | +----------------------------------------------------+ Best States ------------- Heat Dissipation 45 Energy Generation 23 Energy Capacity 325 Matter Stores 300 Matter Capacity 300 Sight Range 18 Robot Scan Range 14 Terrain Scan Density 10 Additional Mass Support 9 Armor Coverage 150 Power Shielding 33 Evasion (%) 64 Melee Accuracy 18 Recoil Reduction 2 Item Schematics ----------------- None Robot Schematics ------------------ None Fabricated ------------ Nothing Alien Tech Used ----------------- None Achievements -------------- Part-time Excavator Universal Adapter Challenges ------------ None Game ------ Seed PointHybridDisintegrator Manual? 0 Play Time 01:02:45 Cumulative 7.6 hours Start 2024.04.10 @ 10:43:44 End 2024.04.10 @ 11:53:34 Sessions 1 Manual Loads 0 Difficulty Rogue Special Mode None Game No. 7 Rogue 7 Adventurer 0 Explorer 0 Win Type - Total 0 Types 0/0/0/0/0/0/0/0/0 Lore% 13 Gallery% 14 Achievement% 14 Wizard Run 0 Options --------- Layout 1 ASCII 0 Keyboard 0 Movement Mouse Keybinds 0 Fullscreen 1 Font 32/SmallcapsGlow Map View 50x35 Zoom Use 0% Tactical HUD 0 Map Filters NONE Filters NONE Steam 1 RUN: 751eea6a-1339-4281-abe7-ea673dd8c556